fUSD/lending_fUSD_20240114
["ID","MTS","AMOUNT","RATE_DAILY","PERIOD"]
[311585872,1705254678316,-500.0,0.00030958,2]
[311585873,1705254678325,-614.14,0.00030958,2]
[311585874,1705254678335,-500.0,0.00030958,2]
[311585875,1705254678344,-500.0,0.00030958,2]
[311585876,1705254678354,-500.0,0.00030958,2]
[311585877,1705254678363,-500.0,0.00030958,2]
[311585878,1705254678374,-833.62,0.00030958,2]
[311585879,1705254678383,-500.0,0.00030958,2]
[311585880,1705254678393,-500.0,0.00030958,2]
[311585881,1705254678402,-500.0,0.00030958,2]
[311585882,1705254678412,-621.16,0.00030958,2]
[311585883,1705254678421,-500.0,0.00030958,2]
[311585884,1705254678431,-500.0,0.00030958,2]
[311585885,1705254678441,-677.45,0.00030958,2]
[311585886,1705254678450,-500.0,0.00030958,2]
[311585887,1705254678459,-519.26,0.00030958,2]
[311585888,1705254678470,-500.0,0.00030958,2]
[311585889,1705254678480,-500.0,0.00030958,2]
[311585890,1705254678489,-500.0,0.00030958,2]
[311585891,1705254678500,-903.38,0.00030958,2]
[311585892,1705254678510,-493.45642123,0.00030958,2]
[311585893,1705254678519,-1028.98,0.00030958,2]
[311585894,1705254678529,-500.0,0.00030958,2]
[311585895,1705254678539,-500.0,0.00030958,2]
[311585896,1705254678549,-792.6,0.00030958,2]
[311585897,1705254678559,-500.0,0.00030958,2]
[311585898,1705254678569,-500.0,0.00030958,2]
[311585899,1705254678579,-500.0,0.00030958,2]
[311585900,1705254678589,-500.0,0.00030958,2]
[311585901,1705254678598,-629.21,0.00030958,2]
[311585902,1705254678608,-500.0,0.00030958,2]
[311585903,1705254678618,-224.84028489,0.00030958,2]
[311585904,1705254678628,-500.0,0.00030958,2]
[311585905,1705254678637,-500.0,0.00030958,2]
[311585906,1705254678646,-500.0,0.00030958,2]
[311585907,1705254678656,-500.0,0.00030958,2]
[311585908,1705254678666,-769.34,0.00030958,2]
[311585909,1705254678676,-500.0,0.00030958,2]
[311585910,1705254678685,-500.0,0.00030958,2]
[311585911,1705254678694,-716.68,0.00030958,2]
[311585912,1705254678704,-883.7,0.00030958,2]
[311585913,1705254678713,-500.0,0.00030958,2]
[311585914,1705254678723,-500.0,0.00030958,2]
[311585915,1705254678732,-854.99,0.00030958,2]
[311585916,1705254678742,-1889.13,0.00030958,2]
[311585917,1705254678752,-500.0,0.00030958,2]
[311585918,1705254678761,-527.65734684,0.00030958,2]
[311585919,1705254678770,-500.0,0.00030958,2]
[311585920,1705254678780,-500.0,0.00030958,2]
[311585921,1705254678789,-500.0,0.00030958,2]
[311585922,1705254678799,-500.0,0.00030958,2]
[311585923,1705254678809,-1000.0,0.00030958,2]
[311585924,1705254678819,-500.0,0.00030958,2]
[311585925,1705254678829,-598.47,0.00030958,2]
[311585926,1705254678839,-500.0,0.00030958,2]
[311585927,1705254678849,-500.0,0.00030958,2]
[311585928,1705254678858,-684.19,0.00030958,2]
[311585929,1705254678868,-500.0,0.00030958,2]
[311585930,1705254678878,-1015.86,0.00030958,2]
[311585931,1705254678889,-1532.26,0.00030958,2]
[311585932,1705254678900,-543.96,0.00030958,2]
[311585933,1705254678911,-500.0,0.00030958,2]
[311585934,1705254678922,-873.09,0.00030958,2]
[311585935,1705254678933,-728.21,0.00030958,2]
[311585936,1705254678944,-544.01,0.00030958,2]
[311585937,1705254678955,-500.0,0.00030958,2]
[311585938,1705254678964,-500.0,0.00030958,2]
[311585939,1705254678975,-847.21,0.00030958,2]
[311585940,1705254678985,-632.51,0.00030958,2]
[311585941,1705254678995,-537.89,0.00030958,2]
[311585942,1705254679005,-500.0,0.00030958,2]
[311585943,1705254679016,-500.0,0.00030958,2]
[311585944,1705254679026,-300.0,0.00030958,2]
[311585945,1705254679036,-500.0,0.00030958,2]
[311585946,1705254679047,-500.0,0.00030958,2]
[311585947,1705254679057,-811.66,0.00030958,2]
[311585948,1705254679069,-500.0,0.00030958,2]
[311585949,1705254679079,-500.0,0.00030958,2]
[311585950,1705254679089,-500.0,0.00030958,2]
[311585951,1705254679099,-577.79,0.00030958,2]
[311585952,1705254679111,-1041.79,0.00030958,2]
[311585953,1705254679122,-569.19,0.00030958,2]
[311585954,1705254679131,-500.0,0.00030958,2]
[311585955,1705254679141,-500.0,0.00030958,2]
[311585956,1705254679152,-799.01,0.00030958,2]
[311585957,1705254679161,-505.23449369,0.00030958,2]
[311585958,1705254679171,-500.0,0.00030958,2]
[311585959,1705254679181,-1000.0,0.00030958,2]
[311585960,1705254679190,-500.0,0.00030958,2]
[311585961,1705254679200,-1129.85,0.00030958,2]
[311585962,1705254679209,-500.0,0.00030958,2]
[311585963,1705254679219,-623.05,0.00030958,2]
[311585964,1705254679228,-500.0,0.00030958,2]
[311585965,1705254679238,-500.0,0.00030958,2]
[311585966,1705254679247,-500.0,0.00030958,2]
[311585967,1705254679256,-500.0,0.00030958,2]
[311585968,1705254679266,-500.0,0.00030958,2]
[311585969,1705254679275,-500.0,0.00030958,2]
[311585970,1705254679284,-500.0,0.00030958,2]
[311585971,1705254679293,-1412.28,0.00030958,2]
[311585972,1705254679303,-500.0,0.00030958,2]
[311585973,1705254679312,-500.0,0.00030958,2]
[311585974,1705254679322,-500.0,0.00030958,2]
[311585975,1705254679331,-500.0,0.00030958,2]
[311585976,1705254679341,-500.0,0.00030958,2]
[311585977,1705254679351,-500.0,0.00030958,2]
[311585978,1705254679360,-500.0,0.00030958,2]
[311585979,1705254679372,-500.0,0.00030958,2]
[311585980,1705254679382,-500.0,0.00030958,2]
[311585981,1705254679391,-500.0,0.00030958,2]
[311585982,1705254679401,-805.08,0.00030958,2]
[311585983,1705254679412,-585.49,0.00030958,2]
[311585984,1705254679421,-500.0,0.00030958,2]
[311585985,1705254679431,-500.0,0.00030958,2]
[311585986,1705254679441,-500.0,0.00030958,2]
[311585987,1705254679451,-500.0,0.00030958,2]
[311585988,1705254679460,-620.94,0.00030958,2]
[311585989,1705254679469,-528.91,0.00030958,2]
[311585990,1705254679479,-623.21,0.00030958,2]
[311585991,1705254679488,-1190.47,0.00030958,2]
[311585992,1705254679498,-500.0,0.00030958,2]
[311585993,1705254679508,-500.0,0.00030958,2]
[311585994,1705254679517,-500.0,0.00030958,2]
[311585995,1705254679527,-1096.0,0.00030958,2]
[311585996,1705254679536,-500.0,0.00030958,2]
[311585997,1705254679546,-500.0,0.00030958,2]
[311585998,1705254679555,-572.26,0.00030958,2]
[311585999,1705254679564,-609.54,0.00030958,2]
[311586000,1705254679575,-500.0,0.00030958,2]
[311586001,1705254679584,-1186.28,0.00030958,2]
[311586002,1705254679594,-669.88,0.00030958,2]
[311586003,1705254679604,-1818.34,0.00030958,2]
[311586004,1705254679614,-500.0,0.00030958,2]
[311586005,1705254679624,-685.95,0.00030958,2]
[311586006,1705254679635,-501.47,0.00030958,2]
[311586007,1705254679644,-518.54,0.00030958,2]
[311586008,1705254679653,-593.21,0.00030958,2]
[311586009,1705254679662,-529.69,0.00030958,2]
[311586010,1705254679671,-500.0,0.00030958,2]
[311586011,1705254679681,-500.0,0.00030958,2]
[311586012,1705254679690,-1016.0,0.00030958,2]
[311586013,1705254679700,-642.5996811,0.00030958,2]
[311586014,1705254679709,-500.0,0.00030958,2]
[311586015,1705254679719,-1621.92,0.00030958,2]
[311586016,1705254679729,-722.69,0.00030958,2]
[311586017,1705254679739,-903.91,0.00030958,2]
[311586018,1705254679748,-500.0,0.00030958,2]
[311586019,1705254679758,-500.0,0.00030958,2]
[311586020,1705254679768,-991.32,0.00030958,2]
[311586021,1705254679778,-500.0,0.00030958,2]
[311586022,1705254679787,-500.0,0.00030958,2]
[311586023,1705254679797,-525.84,0.00030958,2]
[311586024,1705254679807,-500.0,0.00030958,2]
[311586025,1705254679816,-500.0,0.00030958,2]
[311586026,1705254679826,-214.39593521,0.00030958,2]
[311586027,1705254679944,-710.74,0.00030958,2]
[311586028,1705254679954,-500.0,0.00030958,2]
[311586029,1705254679964,-704.61,0.00030958,2]
[311586030,1705254679973,-709.82,0.00030958,2]
[311586031,1705254679983,-500.0,0.00030958,2]
[311586032,1705254679993,-500.0,0.00030958,2]
[311586033,1705254680002,-500.0,0.00030958,2]
[311586034,1705254680013,-193.15739303,0.00030958,2]
[311586035,1705254680023,-1223.32,0.00030958,2]
[311586036,1705254680032,-710.54,0.00030958,2]
[311586037,1705254680043,-1094.22,0.00030958,2]
[311586038,1705254680052,-500.0,0.00030958,2]
[311586039,1705254680062,-793.79,0.00030958,2]
[311586040,1705254680073,-500.0,0.00030958,2]
[311586041,1705254680083,-500.0,0.00030958,2]
[311586042,1705254680093,-589.24,0.00030958,2]
[311586043,1705254680102,-500.0,0.00030958,2]
[311586044,1705254680112,-1336.34,0.00030958,2]
[311586045,1705254680122,-705.78,0.00030958,2]
[311586046,1705254680132,-500.0,0.00030958,2]
[311586047,1705254680142,-1278.82,0.00030958,2]
[311586048,1705254680152,-872.06,0.00030958,2]
[311586049,1705254680161,-1158.19,0.00030958,2]
[311586050,1705254680172,-693.44,0.00030958,2]
[311586051,1705254680181,-614.72,0.00030958,2]
[311586052,1705254680191,-500.0,0.00030958,2]
[311586053,1705254680201,-1275.99,0.00030958,2]
[311586054,1705254680211,-630.84,0.00030958,2]
[311586055,1705254680221,-658.22,0.00030958,2]
[311586056,1705254680231,-530.81,0.00030958,2]
[311586057,1705254680240,-560.34,0.00030958,2]
[311586058,1705254680250,-500.0,0.00030958,2]
[311586059,1705254680259,-500.0,0.00030958,2]
[311586060,1705254680269,-510.82,0.00030958,2]
[311586061,1705254680278,-981.13,0.00030958,2]
[311586062,1705254680288,-500.0,0.00030958,2]
[311586063,1705254680298,-772.78,0.00030958,2]
[311586064,1705254680307,-500.0,0.00030958,2]
[311586065,1705254680317,-500.0,0.00030958,2]
[311586066,1705254680327,-500.0,0.00030958,2]
[311586067,1705254680337,-500.0,0.00030958,2]
[311586068,1705254680347,-500.0,0.00030958,2]
[311586069,1705254680357,-500.0,0.00030958,2]
[311586070,1705254680368,-848.01,0.00030958,2]
[311586071,1705254680377,-1459.83,0.00030958,2]
[311586072,1705254680387,-623.93,0.00030958,2]
[311586073,1705254680397,-500.0,0.00030958,2]
[311586074,1705254680407,-701.62,0.00030958,2]
[311586075,1705254680417,-945.09,0.00030958,2]
[311586076,1705254680426,-500.0,0.00030958,2]
[311586077,1705254680435,-500.0,0.00030958,2]
[311586078,1705254680445,-500.0,0.00030958,2]
[311586079,1705254680455,-500.0,0.00030958,2]
[311586080,1705254680465,-513.49363419,0.00030958,2]
[311586081,1705254680475,-1076.56,0.00030958,2]
[311586082,1705254680485,-1062.5,0.00030958,2]
[311586083,1705254680494,-500.0,0.00030958,2]
[311586084,1705254680503,-1257.99,0.00030958,2]
[311586085,1705254680513,-500.0,0.00030958,2]
[311586086,1705254680522,-500.0,0.00030958,2]
[311586087,1705254680532,-500.0,0.00030958,2]
[311586088,1705254680542,-505.85,0.00030958,2]
[311586089,1705254680552,-183.44420077,0.00030958,2]
[311586090,1705254680562,-911.18,0.00030958,2]
[311586091,1705254680572,-500.0,0.00030958,2]
[311586092,1705254680581,-501.04784957,0.00030958,2]
[311586093,1705254680591,-1141.48,0.00030958,2]
[311586094,1705254680601,-578.73,0.00030958,2]
[311586095,1705254680611,-876.48,0.00030958,2]
[311586096,1705254680621,-500.0,0.00030958,2]
[311586097,1705254680631,-500.0,0.00030958,2]
[311586098,1705254680640,-1408.36,0.00030958,2]
[311586099,1705254680649,-500.0,0.00030958,2]
[311586100,1705254680659,-577.10171028,0.00030958,2]
[311586101,1705254680669,-500.0,0.00030958,2]
[311586102,1705254680678,-652.92,0.00030958,2]
[311586103,1705254680688,-500.0,0.00030958,2]
[311586104,1705254680698,-700.49,0.00030958,2]
[311586105,1705254680707,-535.93,0.00030958,2]
[311586106,1705254680717,-1369.55,0.00030958,2]
[311586107,1705254680727,-500.0,0.00030958,2]
[311586108,1705254680737,-655.51,0.00030958,2]
[311586109,1705254680747,-1693.97,0.00030958,2]
[311586110,1705254680757,-1152.05,0.00030958,2]
[311586111,1705254680767,-500.0,0.00030958,2]
[311586112,1705254680777,-576.41,0.00030958,2]
[311586113,1705254680787,-500.0,0.00030958,2]
[311586114,1705254680798,-500.0,0.00030958,2]
[311586115,1705254680807,-504.34077067,0.00030958,2]
[311586116,1705254680818,-674.01,0.00030958,2]
[311586117,1705254680828,-666.56,0.00030958,2]
[311586118,1705254680838,-1489.68,0.00030958,2]
[311586119,1705254680848,-500.0,0.00030958,2]
[311586120,1705254680857,-500.0,0.00030958,2]
[311586121,1705254680867,-1084.26,0.00030958,2]
[311586122,1705254680877,-500.0,0.00030958,2]
[311586123,1705254680887,-500.0,0.00030958,2]
[311586124,1705254680897,-500.0,0.00030958,2]
[311586125,1705254680907,-500.0,0.00030958,2]
[311586126,1705254680917,-507.6,0.00030958,2]
[311586127,1705254680927,-509.56645019,0.00030958,2]
[311586128,1705254680937,-672.02,0.00030958,2]
[311586129,1705254680947,-500.0,0.00030958,2]
[311586130,1705254680956,-500.0,0.00030958,2]
[311586131,1705254680966,-500.0,0.00030958,2]
[311586132,1705254680976,-500.0,0.00030958,2]
[311586133,1705254680985,-500.0,0.00030958,2]
[311586134,1705254680995,-500.0,0.00030958,2]
[311586135,1705254681004,-500.0,0.00030958,2]
[311586136,1705254681014,-1102.17,0.00030958,2]
[311586137,1705254681024,-1616.4,0.00030958,2]
[311586138,1705254681034,-816.43,0.00030958,2]
[311586139,1705254681046,-500.0,0.00030958,2]
[311586140,1705254681057,-500.0,0.00030958,2]
[311586141,1705254681066,-500.0,0.00030958,2]
[311586142,1705254681075,-500.0,0.00030958,2]
[311586143,1705254681084,-719.58,0.00030958,2]
[311586144,1705254681095,-807.28,0.00030958,2]
[311586145,1705254681104,-500.0,0.00030958,2]
[311586146,1705254681114,-500.0,0.00030958,2]
[311586147,1705254681124,-815.19,0.00030958,2]
[311586148,1705254681134,-716.18,0.00030958,2]
[311586149,1705254681143,-675.06,0.00030958,2]
[311586150,1705254681152,-683.69,0.00030958,2]
[311586151,1705254681161,-500.0,0.00030958,2]
[311586152,1705254681170,-500.0,0.00030958,2]
[311586153,1705254681178,-623.19,0.00030958,2]
[311586154,1705254681187,-500.0,0.00030958,2]
[311586155,1705254681194,-500.0,0.00030958,2]
[311586156,1705254681203,-1243.95,0.00030958,2]
[311586157,1705254681212,-1006.49,0.00030958,2]
[311586158,1705254681221,-1113.17,0.00030958,2]
[311586159,1705254681230,-500.0,0.00030958,2]
[311586160,1705254681239,-500.0,0.00030958,2]
[311586161,1705254681249,-510.34,0.00030958,2]
[311586162,1705254681258,-500.0,0.00030958,2]
[311586163,1705254681267,-674.12,0.00030958,2]
[311586164,1705254681276,-500.0,0.00030958,2]
[311586165,1705254681286,-596.91,0.00030958,2]
[311586166,1705254681295,-941.41,0.00030958,2]
[311586167,1705254681304,-1779.19,0.00030958,2]
[311586168,1705254681313,-500.0,0.00030958,2]
[311586169,1705254681322,-536.5,0.00030958,2]
[311586170,1705254681332,-500.0,0.00030958,2]
[311586171,1705254681341,-1166.57,0.00030958,2]
[311586172,1705254681351,-500.0,0.00030958,2]
[311586173,1705254681360,-500.0,0.00030958,2]
[311586174,1705254681371,-500.0,0.00030958,2]
[311586175,1705254681380,-886.77,0.00030958,2]
[311586176,1705254681389,-500.0,0.00030958,2]
[311586177,1705254681398,-500.0,0.00030958,2]
[311586178,1705254681407,-1076.44,0.00030958,2]
[311586179,1705254681416,-806.69,0.00030958,2]
[311586180,1705254681426,-644.5,0.00030958,2]
[311586181,1705254681435,-500.0,0.00030958,2]
[311586182,1705254681444,-1000.0,0.00030958,2]
[311586183,1705254681453,-500.0,0.00030958,2]
[311586184,1705254681463,-846.39,0.00030958,2]
[311586185,1705254681473,-500.0,0.00030958,2]
[311586186,1705254681483,-500.0,0.00030958,2]
[311586187,1705254681493,-654.91,0.00030958,2]
[311586188,1705254681503,-500.0,0.00030958,2]
[311586189,1705254681512,-500.0,0.00030958,2]
[311586190,1705254681522,-631.36,0.00030958,2]
[311586191,1705254681531,-505.5,0.00030958,2]
[311586192,1705254681541,-1250.68,0.00030958,2]
[311586193,1705254681551,-1405.3,0.00030958,2]
[311586194,1705254681560,-500.0,0.00030958,2]
[311586195,1705254681569,-614.66,0.00030958,2]
[311586196,1705254681579,-500.0,0.00030958,2]
[311586197,1705254681588,-500.0,0.00030958,2]
[311586198,1705254681598,-500.0,0.00030958,2]
[311586199,1705254681608,-500.0,0.00030958,2]
[311586200,1705254681618,-500.0,0.00030958,2]
[311586201,1705254681628,-500.38,0.00030958,2]
[311586202,1705254681638,-500.0,0.00030958,2]
[311586203,1705254681647,-500.0,0.00030958,2]
[311586204,1705254681658,-500.0,0.00030958,2]
[311586205,1705254681668,-736.6,0.00030958,2]
[311586206,1705254681678,-500.0,0.00030958,2]
[311586207,1705254681687,-500.0,0.00030958,2]
[311586208,1705254681698,-698.58,0.00030958,2]
[311586209,1705254681707,-1600.55,0.00030958,2]
[311586210,1705254681717,-500.0,0.00030958,2]
[311586211,1705254681726,-582.13050806,0.00030958,2]
[311586212,1705254681735,-500.0,0.00030958,2]
[311586213,1705254681746,-1355.09,0.00030958,2]
[311586214,1705254681755,-376.56080261,0.00030958,2]
[311586215,1705254681765,-783.01,0.00030958,2]
[311586216,1705254681775,-500.0,0.00030958,2]
[311586217,1705254681784,-694.09,0.00030958,2]
[311586218,1705254681793,-500.0,0.00030958,2]
[311586219,1705254681802,-698.64,0.00030958,2]
[311586220,1705254681812,-286.29553712,0.00030958,2]
[311586221,1705254681822,-500.0,0.00030958,2]
[311586222,1705254681831,-500.0,0.00030958,2]
[311586223,1705254681840,-500.0,0.00030958,2]
[311586224,1705254681849,-500.0,0.00030958,2]
[311586225,1705254681859,-500.0,0.00030958,2]
[311586226,1705254681868,-893.97,0.00030958,2]
[311586227,1705254681878,-500.0,0.00030958,2]
[311586228,1705254681888,-802.7,0.00030958,2]
[311586229,1705254681897,-500.0,0.00030958,2]
[311586230,1705254681907,-877.73,0.00030958,2]
[311586231,1705254681916,-500.0,0.00030958,2]
[311586232,1705254681926,-377.66521516,0.00030958,2]
[311586233,1705254681936,-562.74,0.00030958,2]
[311586234,1705254681946,-643.5,0.00030958,2]
[311586235,1705254681956,-843.19,0.00030958,2]
[311586236,1705254681965,-959.0,0.00030958,2]
[311586237,1705254681975,-500.0,0.00030958,2]
[311586238,1705254681985,-500.0,0.00030958,2]
[311586239,1705254681994,-942.69,0.00030958,2]
[311586240,1705254682003,-688.19,0.00030958,2]
[311586241,1705254682013,-500.0,0.00030958,2]
[311586242,1705254682022,-599.8,0.00030958,2]
[311586243,1705254682031,-683.36,0.00030958,2]
[311586244,1705254682040,-1340.22,0.00030958,2]
[311586245,1705254682049,-1310.4,0.00030958,2]
[311586246,1705254682059,-500.0,0.00030958,2]
[311586247,1705254682068,-2865.82,0.00030958,2]
[311586248,1705254682077,-500.0,0.00030958,2]
[311586249,1705254682087,-500.0,0.00030958,2]
[311586250,1705254682096,-500.0,0.00030958,2]
[311586251,1705254682105,-500.0,0.00030958,2]
[311586252,1705254682115,-685.16,0.00030958,2]
[311586253,1705254682124,-500.0,0.00030958,2]
[311586254,1705254682133,-540.62,0.00030958,2]
[311586255,1705254682142,-500.0,0.00030958,2]
[311586256,1705254682151,-526.27,0.00030958,2]
[311586257,1705254682160,-500.0,0.00030958,2]
[311586258,1705254682170,-2183.89,0.00030958,2]
[311586259,1705254682178,-2162.44,0.00030958,2]
[311586260,1705254682187,-500.0,0.00030958,2]
[311586261,1705254682197,-555.95,0.00030958,2]
[311586262,1705254682205,-500.0,0.00030958,2]
[311586263,1705254682214,-511.59676288,0.00030958,2]
[311586264,1705254682224,-500.0,0.00030958,2]
[311586265,1705254682234,-860.3,0.00030958,2]
[311586266,1705254682243,-500.0,0.00030958,2]
[311586267,1705254682252,-500.0,0.00030958,2]
[311586268,1705254682261,-500.0,0.00030958,2]
[311586269,1705254682270,-500.0,0.00030958,2]
[311586270,1705254682280,-500.0,0.00030958,2]
[311586271,1705254682290,-500.0,0.00030958,2]
[311586272,1705254682300,-500.0,0.00030958,2]
[311586273,1705254682309,-250.0,0.00030958,2]
[311586274,1705254682318,-500.0,0.00030958,2]
[311586275,1705254682327,-689.79,0.00030958,2]
[311586276,1705254682338,-500.0,0.00030958,2]
[311586277,1705254682347,-4135.39,0.00030958,2]
[311586278,1705254682357,-500.0,0.00030958,2]
[311586279,1705254682366,-500.0,0.00030958,2]
[311586280,1705254682375,-500.0,0.00030958,2]
[311586281,1705254682385,-500.0,0.00030958,2]
[311586282,1705254682394,-625.54,0.00030958,2]
[311586283,1705254682402,-571.36,0.00030958,2]
[311586284,1705254682411,-500.0,0.00030958,2]
[311586285,1705254682420,-500.0,0.00030958,2]
[311586286,1705254682429,-841.27,0.00030958,2]
[311586287,1705254682438,-952.77,0.00030958,2]
[311586288,1705254682447,-573.05391786,0.00030958,2]
[311586289,1705254682456,-500.0,0.00030958,2]
[311586290,1705254682466,-500.0,0.00030958,2]
[311586291,1705254682475,-500.0,0.00030958,2]
[311586292,1705254682485,-760.3,0.00030958,2]
[311586293,1705254682494,-851.47,0.00030958,2]
[311586294,1705254682504,-500.0,0.00030958,2]
[311586295,1705254682513,-722.99,0.00030958,2]
[311586296,1705254682522,-934.33,0.00030958,2]
[311586297,1705254682532,-2085.35,0.00030958,2]
[311586298,1705254682540,-500.0,0.00030958,2]
[311586299,1705254682550,-528.2,0.00030958,2]
[311586300,1705254682558,-500.0,0.00030958,2]
[311586301,1705254682568,-500.0,0.00030958,2]
[311586302,1705254682577,-500.0,0.00030958,2]
[311586303,1705254682586,-500.0,0.00030958,2]
[311586304,1705254682595,-1072.63,0.00030958,2]
[311586305,1705254682604,-500.0,0.00030958,2]
[311586306,1705254682613,-500.0,0.00030958,2]
[311586307,1705254682622,-500.0,0.00030958,2]
[311586308,1705254682631,-500.0,0.00030958,2]
[311586309,1705254682643,-1143.88,0.00030958,2]
[311586310,1705254682652,-500.0,0.00030958,2]
[311586311,1705254682661,-866.3,0.00030958,2]
[311586312,1705254682671,-687.83,0.00030958,2]
[311586313,1705254682680,-1451.85,0.00030958,2]
[311586314,1705254682689,-500.0,0.00030958,2]
[311586315,1705254682698,-1260.44,0.00030958,2]
[311586316,1705254682707,-601.33,0.00030958,2]
[311586317,1705254682716,-1285.21,0.00030958,2]
[311586318,1705254682725,-686.68,0.00030958,2]
[311586319,1705254682734,-500.0,0.00030958,2]
[311586320,1705254682744,-500.0,0.00030958,2]
[311586321,1705254682753,-837.43,0.00030958,2]
[311586322,1705254682762,-500.0,0.00030958,2]
[311586323,1705254682771,-3602.0,0.00030958,2]
[311586324,1705254682781,-1091.0,0.00030958,2]
[311586325,1705254682790,-938.24,0.00030958,2]
[311586326,1705254682800,-721.53,0.00030958,2]
[311586327,1705254682809,-500.0,0.00030958,2]
[311586328,1705254682818,-4612.85,0.00030958,2]
[311586329,1705254682827,-1262.49,0.00030958,2]
[311586330,1705254682837,-687.1,0.00030958,2]
[311586331,1705254682846,-500.0,0.00030958,2]
[311586332,1705254682855,-1568.3,0.00030958,2]
[311586333,1705254682864,-1022.49708862,0.00030958,2]
[311586334,1705254682874,-945.26,0.00030958,2]
[311586335,1705254682884,-500.0,0.00030958,2]
[311586336,1705254682893,-500.0,0.00030958,2]
[311586337,1705254682902,-1939.61,0.00030958,2]
[311586338,1705254682912,-921.19,0.00030958,2]
[311586339,1705254682922,-2489.84,0.00030958,2]
[311586340,1705254682931,-500.0,0.00030958,2]
[311586341,1705254682941,-1872.87,0.00030958,2]
[311586342,1705254682950,-500.0,0.00030958,2]
[311586343,1705254682959,-500.0,0.00030958,2]
[311586344,1705254682969,-588.83,0.00030958,2]
[311586345,1705254682977,-500.0,0.00030958,2]
[311586346,1705254682986,-738.3,0.00030958,2]
[311586347,1705254682995,-882.91,0.00030958,2]
[311586348,1705254683005,-1363.03,0.00030958,2]
[311586349,1705254683014,-540.32,0.00030958,2]
[311586350,1705254683023,-500.0,0.00030958,2]
[311586351,1705254683033,-500.0,0.00030958,2]
[311586352,1705254683043,-1915.63,0.00030958,2]
[311586353,1705254683054,-1446.64,0.00030958,2]
[311586354,1705254683063,-670.56,0.00030958,2]
[311586355,1705254683073,-500.0,0.00030958,2]
[311586356,1705254683082,-1006.82,0.00030958,2]
[311586357,1705254683093,-644.61,0.00030958,2]
[311586358,1705254683102,-693.93,0.00030958,2]
[311586359,1705254683111,-500.0,0.00030958,2]
[311586360,1705254683121,-863.23,0.00030958,2]
[311586361,1705254683130,-1345.3,0.00030958,2]
[311586362,1705254683139,-979.22,0.00030958,2]
[311586363,1705254683148,-500.0,0.00030958,2]
[311586364,1705254683158,-1093.2,0.00030958,2]
[311586365,1705254683167,-500.0,0.00030958,2]
[311586366,1705254683177,-1230.76,0.00030958,2]
[311586367,1705254683185,-582.59,0.00030958,2]
[311586368,1705254683194,-500.0,0.00030958,2]
[311586369,1705254683203,-1556.76,0.00030958,2]
[311586370,1705254683212,-500.0,0.00030958,2]
[311586371,1705254683222,-1047.0,0.00030958,2]